fUSD/lending_fUSD_20251105
["ID","MTS","AMOUNT","RATE_DAILY","PERIOD"]
[393236926,1762367441283,-221.75791629,0.00015912,2]
[393236927,1762367441293,-1000.0,0.00015918,2]
[393236928,1762367441302,-201.33738244,0.00015951,2]
[393236929,1762367441311,-1000.0,0.00015958,2]
[393236930,1762367441322,-277.35679052,0.00015976,2]
[393236931,1762367441332,-1200.0,0.00015984,2]
[393236932,1762367441342,-9999.99,0.00015986,2]
[393236933,1762367441351,-364.57,0.00015986,2]
[393236934,1762367441361,-1597.49,0.00015986,2]
[393236935,1762367441374,-6356.7,0.00015986,2]
[393236936,1762367441384,-1000.0,0.00015996,2]
[393236937,1762367441394,-698.44,0.00016,2]
[393236938,1762367441405,-1000.0,0.00016017,2]
[393236939,1762367441416,-1000.0,0.00016024,2]
[393236940,1762367441426,-1425.0,0.00016033,2]
[393236941,1762367441436,-1425.0,0.00016038,2]
[393236942,1762367441446,-9999.99,0.0001604,2]
[393236943,1762367441455,-150.99,0.0001604,2]
[393236944,1762367441465,-402.57,0.0001604,2]
[393236945,1762367441475,-9999.99,0.0001604,2]
[393236946,1762367441485,-544.9,0.00016041,2]
[393236947,1762367441495,-500.0,0.00016041,2]
[393236948,1762367441504,-500.0,0.00016041,2]
[393236949,1762367441515,-500.0,0.00016041,2]
[393236950,1762367441526,-500.0,0.00016041,2]
[393236951,1762367441536,-500.0,0.00016041,2]
[393236952,1762367441546,-500.0,0.00016041,2]
[393236953,1762367441556,-500.0,0.00016041,2]
[393236954,1762367441565,-500.0,0.00016041,2]
[393236955,1762367441576,-500.0,0.00016041,2]
[393236956,1762367441586,-500.0,0.00016041,2]
[393236957,1762367441596,-500.0,0.00016041,2]
[393236958,1762367441606,-250.0,0.00016041,2]
[393236959,1762367441616,-250.0,0.00016041,2]
[393236960,1762367441625,-250.0,0.00016041,2]
[393236961,1762367441636,-250.0,0.00016041,2]
[393236962,1762367441646,-250.0,0.00016041,2]
[393236963,1762367441656,-250.0,0.00016041,2]
[393236964,1762367441666,-250.0,0.00016041,2]
[393236965,1762367441675,-250.0,0.00016041,2]
[393236966,1762367441685,-250.0,0.00016041,2]
[393236967,1762367441695,-250.0,0.00016041,2]
[393236968,1762367441705,-250.0,0.00016041,2]
[393236969,1762367441714,-322.6107,0.00016041,2]
[393236970,1762367441723,-151.0,0.00016048,2]
[393236971,1762367441734,-1425.0,0.0001605,2]
[393236972,1762367441744,-53626.34600778,0.00016051,2]
[393236973,1762367441753,-1000.0,0.00016051,2]
[393236974,1762367441766,-234.2882,0.0001608,2]
[393236975,1762367441776,-929.0539,0.0001608,2]
[393236976,1762367441786,-1000.0,0.00016082,2]
[393236977,1762367441796,-1000.0,0.00016088,2]
[393236978,1762367441806,-504.57189243,0.00016089,2]
[393236979,1762367441815,-500.0,0.00016089,2]
[393236980,1762367441825,-500.0,0.00016089,2]
[393236981,1762367441835,-500.0,0.00016089,2]
[393236982,1762367441846,-1425.0,0.0001609,2]
[393236983,1762367441856,-1425.0,0.00016095,2]
[393236984,1762367441866,-234.89,0.00016117,2]
[393236985,1762367441875,-255.0,0.00016123,2]
[393236986,1762367441885,-893.58488772,0.00016148,2]
[393236987,1762367441895,-500.0,0.00016158,2]
[393236988,1762367441905,-1425.0,0.00016159,2]
[393236989,1762367441918,-1000.0,0.00016161,2]
[393236990,1762367441928,-1000.0,0.00016166,2]
[393236991,1762367441938,-1425.0,0.00016167,2]
[393236992,1762367441947,-996.5,0.00016173,2]
[393236993,1762367441958,-195.78612981,0.00016177,2]
[393236994,1762367441968,-1000.0,0.00016177,2]
[393236995,1762367441978,-1015.24868806,0.00016177,2]
[393236996,1762367441987,-1000.0,0.00016177,2]
[393236997,1762367441998,-36471.76297912,0.0001618,2]
[393236998,1762367442009,-1425.0,0.00016184,2]
[393236999,1762367442019,-1425.0,0.00016184,2]
[393237000,1762367442029,-1425.0,0.00016188,2]
[393237001,1762367442038,-466.03656782,0.00016192,2]
[393237002,1762367442048,-54439.96372822,0.000162,2]
[393237003,1762367442058,-176.88,0.000162,2]
[393237004,1762367442068,-823.94,0.000162,2]
[393237005,1762367442078,-200.0,0.000162,2]
[393237006,1762367442088,-152.53335672,0.00016223,2]
[393237007,1762367442098,-1425.0,0.00016224,2]
[393237008,1762367442107,-1425.0,0.00016237,2]
[393237009,1762367442117,-1342.89950275,0.00016271,2]
[393237010,1762367442127,-150.0,0.00016276,2]
[393237011,1762367442136,-150.0,0.0001629,2]
[393237012,1762367442145,-1425.0,0.00016301,2]
[393237013,1762367442158,-150.0,0.00016314,2]
[393237014,1762367442168,-544.9,0.00016315,2]
[393237015,1762367442184,-1425.0,0.00016325,2]
[393237016,1762367442202,-150.0,0.00016335,2]
[393237017,1762367442212,-150.0,0.00016335,2]
[393237018,1762367442222,-150.0,0.00016335,2]
[393237019,1762367442232,-150.0,0.00016335,2]
[393237020,1762367442241,-500.0,0.00016335,2]
[393237021,1762367442250,-150.0,0.00016335,2]
[393237022,1762367442260,-150.0,0.00016335,2]
[393237023,1762367442270,-150.0,0.00016335,2]
[393237024,1762367442279,-150.0,0.00016335,2]
[393237025,1762367442289,-265.73178444,0.00016335,2]
[393237026,1762367442299,-150.0,0.00016335,2]
[393237027,1762367442310,-150.0,0.00016335,2]
[393237028,1762367442321,-500.0,0.00016335,2]
[393237029,1762367442331,-150.0,0.00016335,2]
[393237030,1762367442340,-500.0,0.00016335,2]
[393237031,1762367442350,-500.0,0.00016335,2]
[393237032,1762367442360,-151.0,0.0001634,2]
[393237033,1762367442370,-1000.0,0.00016356,2]
[393237034,1762367442379,-500.0,0.00016356,2]
[393237035,1762367442389,-1425.0,0.00016396,2]
[393237036,1762367442399,-353.76,0.000164,2]
[393237037,1762367442409,-698.44,0.000164,2]
[393237038,1762367442419,-698.44,0.000164,2]
[393237039,1762367442429,-150.0,0.000164,2]
[393237040,1762367442439,-370.86,0.000164,2]
[393237041,1762367442448,-420.0,0.00016415,2]
[393237042,1762367442458,-420.0,0.00016415,2]
[393237043,1762367442468,-420.0,0.00016415,2]
[393237044,1762367442478,-150.0,0.00016438,2]
[393237045,1762367442487,-500.0,0.00016438,2]
[393237046,1762367442497,-500.0,0.00016438,2]
[393237047,1762367442506,-500.0,0.00016438,2]
[393237048,1762367442516,-150.0,0.00016438,2]
[393237049,1762367442526,-500.0,0.00016438,2]
[393237050,1762367442535,-500.0,0.00016438,2]
[393237051,1762367442545,-500.0,0.00016438,2]
[393237052,1762367442558,-500.0,0.00016438,2]
[393237053,1762367442568,-176.60568143,0.00016438,2]
[393237054,1762367442579,-640.04,0.00016438,2]
[393237055,1762367442588,-163.3,0.0001644,2]
[393237056,1762367442598,-163.3,0.0001644,2]
[393237057,1762367442607,-150.0,0.00016472,2]
[393237058,1762367442617,-500.0,0.00016472,2]
[393237059,1762367442626,-150.0,0.00016472,2]
[393237060,1762367442636,-150.0,0.00016472,2]
[393237061,1762367442646,-500.0,0.00016472,2]
[393237062,1762367442655,-500.0,0.00016472,2]
[393237063,1762367442664,-500.0,0.00016472,2]
[393237064,1762367442674,-500.0,0.00016482,2]
[393237065,1762367442683,-500.0,0.00016482,2]
[393237066,1762367442693,-500.0,0.00016482,2]
[393237067,1762367442703,-300.0,0.00016498,2]
[393237068,1762367442712,-300.0,0.00016498,2]
[393237070,1762367442722,-300.0,0.00016498,2]
[393237071,1762367442731,-300.0,0.00016498,2]
[393237072,1762367442740,-300.0,0.00016498,2]
[393237073,1762367442749,-300.0,0.00016498,2]
[393237074,1762367442759,-195.0,0.00016498,2]
[393237075,1762367442768,-1680.0,0.00016498,2]
[393237076,1762367442778,-252.74,0.00016499,2]
[393237077,1762367442787,-195.0,0.00016499,2]
[393237078,1762367442797,-150.0,0.00016499,2]
[393237079,1762367442806,-937.68594804,0.00016499,2]
[393237080,1762367442815,-698.44,0.000165,2]
[393237081,1762367442825,-698.44,0.000165,2]
[393237082,1762367442834,-698.44,0.000165,2]
[393237083,1762367442843,-150.0,0.000165,2]
[393237084,1762367442852,-698.44,0.000165,2]
[393237085,1762367442862,-698.44,0.000165,2]
[393237086,1762367442871,-176.88,0.000165,2]
[393237087,1762367442880,-176.88,0.000165,2]
[393237088,1762367442890,-176.88,0.000165,2]
[393237089,1762367442900,-953.77,0.000165,2]
[393237090,1762367442911,-698.44,0.000165,2]
[393237091,1762367442927,-5000.0,0.000165,2]
[393237092,1762367442938,-523.44493945,0.000165,2]
[393237093,1762367442950,-579.51367004,0.00016501,2]
[393237094,1762367442960,-579.51367003,0.00016501,2]
[393237095,1762367442970,-4971.0,0.00016557,2]
[393237096,1762367442980,-4971.0,0.0001657,2]
[393237097,1762367442992,-150.0,0.00016575,2]
[393237098,1762367443002,-544.9,0.00016589,2]
[393237099,1762367443012,-3654.368,0.00016592,2]
[393237100,1762367443021,-193.172,0.00016592,2]
[393237101,1762367443031,-225.48,0.00016605,2]
[393237102,1762367443041,-480.55,0.00016607,2]
[393237103,1762367443050,-150.0,0.00016609,2]
[393237104,1762367443060,-500.0,0.00016609,2]
[393237105,1762367443069,-518.2152435,0.00016609,2]
[393237106,1762367443079,-450.0,0.00016609,2]
[393237107,1762367443088,-500.0,0.00016609,2]
[393237108,1762367443098,-164.24233997,0.00016612,2]
[393237109,1762367443107,-457.67636601,0.00016622,2]
[393237110,1762367443116,-250.0,0.00016622,2]
[393237111,1762367443125,-197.09164834,0.00016622,2]
[393237112,1762367443135,-250.0,0.00016622,2]
[393237113,1762367443145,-195.0,0.00016622,2]
[393237114,1762367443154,-313.42,0.00016636,2]
[393237115,1762367443163,-1000.0,0.00016637,2]
[393237116,1762367443172,-1000.0,0.00016637,2]
[393237117,1762367443183,-1000.0,0.00016637,2]
[393237118,1762367443193,-500.0,0.00016694,2]
[393237119,1762367443209,-500.0,0.00016694,2]
[393237120,1762367443224,-183.69568692,0.00016694,2]
[393237122,1762367443234,-500.0,0.000167,2]
[393237124,1762367443244,-500.0,0.000167,2]
[393237125,1762367443253,-1000.0,0.000167,2]
[393237126,1762367443262,-200.0,0.00016712,2]
[393237127,1762367443272,-180.85,0.00016712,2]
[393237128,1762367443281,-1500.0,0.00016724,2]
[393237129,1762367443292,-2500.0,0.00016741,2]
[393237130,1762367443301,-316.87,0.00016744,2]
[393237131,1762367443311,-241.19254604,0.00016746,2]
[393237132,1762367443321,-261.0,0.00016746,2]
[393237133,1762367443331,-500.0,0.00016746,2]
[393237134,1762367443340,-164.24233997,0.00016796,2]
[393237135,1762367443350,-1000.0,0.000168,2]
[393237136,1762367443359,-238.0,0.00016808,2]
[393237137,1762367443369,-954.06,0.00016822,2]
[393237138,1762367443378,-166.67,0.00016825,2]
[393237139,1762367443399,-544.9,0.00016863,2]
[393237140,1762367443419,-316.87,0.00016881,2]
[393237141,1762367443432,-500.0,0.00016883,2]
[393237142,1762367443441,-2200.0,0.000169,6]
[393237143,1762367443450,-162.45450241,0.000169,2]
[393237144,1762367443460,-1815.0,0.000169,2]
[393237145,1762367443470,-561.15028636,0.000169,2]
[393237146,1762367443480,-3609.0,0.00016945,2]
[393237147,1762367443490,-4718.0,0.00016946,2]
[393237148,1762367443499,-861.0,0.00016953,2]
[393237149,1762367443509,-500.0,0.00016973,2]
[393237150,1762367443518,-500.0,0.00016973,2]
[393237151,1762367443528,-500.0,0.00016973,2]
[393237152,1762367443538,-500.0,0.00016973,2]
[393237153,1762367443548,-168.08513591,0.00016973,2]
[393237154,1762367443558,-504.29706994,0.00016973,2]
[393237155,1762367443568,-500.0,0.00016973,2]
[393237156,1762367443577,-632.5089604,0.00016973,2]
[393237157,1762367443587,-500.0,0.00016973,2]
[393237158,1762367443596,-517.35927454,0.00016973,2]
[393237159,1762367443606,-500.0,0.00016973,2]
[393237160,1762367443616,-500.0,0.00016973,2]
[393237161,1762367443625,-500.0,0.00016973,2]
[393237162,1762367443635,-500.0,0.00016973,2]
[393237163,1762367443644,-500.0,0.00016973,2]
[393237164,1762367443654,-500.12222106,0.00016973,2]
[393237165,1762367443664,-159.80438112,0.00016973,2]
[393237166,1762367443673,-205.86369281,0.00016973,2]
[393237167,1762367443682,-500.0,0.00016973,2]
[393237168,1762367443691,-458.16988647,0.00016973,2]
[393237169,1762367443700,-359.52575001,0.00016973,2]
[393237170,1762367443709,-500.52001213,0.00016973,2]
[393237171,1762367443719,-510.9280147,0.00016973,2]
[393237172,1762367443728,-290.0,0.0001698,2]
[393237173,1762367443737,-164.24233997,0.0001698,2]
[393237174,1762367443747,-500.0,0.00016986,2]
[393237175,1762367443759,-2764.60000004,0.0001699,2]
[393237176,1762367443768,-163.3,0.0001699,2]
[393237177,1762367443778,-151.0,0.00016997,2]
[393237178,1762367443787,-519.42,0.00016999,2]
[393237179,1762367443797,-500.0,0.00016999,2]
[393237180,1762367443806,-500.0,0.00016999,2]
[393237181,1762367443815,-222.0,0.00017,2]
[393237182,1762367443825,-200818.66,0.00017,2]
[393237183,1762367443835,-20000.0,0.00017,2]
[393237184,1762367443844,-250.0,0.00017,2]
[393237185,1762367443853,-553.124282,0.00017,2]
[393237186,1762367443863,-553.124282,0.00017,2]
[393237187,1762367443872,-553.124282,0.00017,2]
[393237188,1762367443881,-553.124282,0.00017,2]
[393237189,1762367443890,-541.13335366,0.00017,2]
[393237190,1762367443900,-151.0,0.00017,2]
[393237191,1762367443909,-151.0,0.00017,2]
[393237192,1762367444089,-2000.0,0.00017,2]
[393237193,1762367444099,-500.0,0.00017012,2]
[393237194,1762367444108,-200.0,0.00017012,2]
[393237195,1762367444118,-190.50608865,0.0001702,2]
[393237196,1762367444127,-162.45450241,0.00017025,2]
[393237197,1762367444136,-1000.0,0.0001703,2]
[393237198,1762367444145,-861.0,0.00017034,2]
[393237199,1762367444154,-4971.0,0.00017045,2]
[393237200,1762367444163,-561.15028636,0.00017067,2]
[393237201,1762367444173,-861.0,0.0001709,2]
[393237202,1762367444182,-861.0,0.000171,2]
[393237203,1762367444191,-501.72880029,0.00017113,2]
[393237204,1762367444200,-500.0,0.00017113,2]
[393237205,1762367444209,-2500.0,0.00017122,2]
[393237206,1762367444218,-861.0,0.00017126,2]
[393237207,1762367444227,-544.9,0.00017137,2]
[393237208,1762367444236,-162.45450241,0.0001715,2]
[393237209,1762367444245,-164.24233997,0.00017164,2]
[393237210,1762367444254,-1393.54426855,0.00017185,2]
[393237211,1762367444263,-1500.0,0.00017185,2]
[393237212,1762367444272,-771.4371434,0.00017185,2]
[393237213,1762367444281,-3300.0,0.000172,6]
[393237214,1762367444290,-6656.0,0.00017209,2]
[393237215,1762367444300,-2141.0,0.00017209,2]
[393237216,1762367444310,-607.0,0.00017209,2]
[393237217,1762367444319,-574.0,0.00017209,2]
[393237218,1762367444328,-500.0,0.00017248,2]
[393237219,1762367444337,-1000.0,0.00017248,2]
[393237220,1762367444347,-415.63,0.0001726,2]
[393237221,1762367444356,-415.63,0.0001726,2]
[393237222,1762367444365,-415.63,0.0001726,2]
[393237223,1762367444374,-415.63,0.0001726,2]
[393237224,1762367444383,-415.63,0.0001726,2]
[393237225,1762367444392,-415.63,0.0001726,2]
[393237226,1762367444402,-861.0,0.00017265,2]
[393237227,1762367444411,-550.15219841,0.00017272,2]
[393237228,1762367444420,-162.45450241,0.00017275,2]
[393237229,1762367444429,-861.0,0.00017282,2]
[393237230,1762367444438,-174.55969353,0.00017288,2]
[393237231,1762367444448,-174.55969354,0.00017288,2]
[393237232,1762367444457,-1104.71558279,0.00017288,2]
[393237233,1762367444475,-1085.17091602,0.00017288,2]
[393237234,1762367444486,-1125.31004279,0.00017288,2]
[393237235,1762367444496,-1077.59933991,0.00017288,2]
[393237236,1762367444505,-1144.52606587,0.00017288,2]
[393237237,1762367444515,-1010.61888887,0.00017288,2]
[393237238,1762367444525,-1047.59367032,0.00017288,2]
[393237239,1762367444535,-1111.8796731,0.00017288,2]
[393237240,1762367444545,-1088.59647318,0.00017288,2]
[393237241,1762367444555,-1061.04129321,0.00017288,2]
[393237242,1762367444564,-1264.6423335,0.00017288,2]
[393237243,1762367444574,-4400.0,0.000173,6]
[393237244,1762367444584,-355.0,0.00017338,2]
[393237245,1762367444595,-164.24233997,0.00017348,2]
[393237246,1762367444604,-861.0,0.00017391,2]
[393237247,1762367444614,-162.45450241,0.000174,2]
[393237248,1762367444623,-5600.0,0.000174,6]
[393237249,1762367444633,-544.90228413,0.00017411,2]
[393237250,1762367444643,-861.0,0.0001742,2]
[393237251,1762367444652,-798.79209628,0.00017431,2]
[393237252,1762367444662,-300.0,0.00017431,2]
[393237253,1762367444672,-211.86008901,0.00017434,2]
[393237254,1762367444681,-1000.0,0.00017452,2]
[393237255,1762367444690,-5888.0,0.00017462,2]
[393237256,1762367444700,-1200.0,0.00017476,2]
[393237257,1762367444710,-174.55969353,0.00017479,2]
[393237258,1762367444720,-174.55969354,0.00017479,2]
[393237259,1762367444729,-861.0,0.00017488,2]
[393237260,1762367444739,-1100.0,0.000175,6]
[393237261,1762367444750,-820.0,0.00017509,2]
[393237262,1762367444759,-1595.0,0.00017509,2]
[393237263,1762367444769,-1272.0,0.00017509,2]
[393237264,1762367444778,-812.0,0.00017509,2]
[393237265,1762367444787,-1188.0,0.00017509,2]
[393237266,1762367444796,-905.0,0.00017509,2]
[393237267,1762367444806,-313.42,0.00017512,2]
[393237268,1762367444815,-823.80736449,0.00017521,2]
[393237269,1762367444825,-1013.5397751,0.00017521,2]
[393237270,1762367444835,-596.03695751,0.00017521,2]
[393237271,1762367444844,-1000.0,0.00017521,2]
[393237272,1762367444853,-1000.0,0.00017521,2]
[393237273,1762367444863,-1000.0,0.00017521,2]
[393237274,1762367444873,-1028.96023133,0.00017521,2]
[393237275,1762367444882,-1000.0,0.00017521,2]
[393237276,1762367444891,-162.45450241,0.00017525,2]
[393237277,1762367444901,-500.0,0.00017528,2]
[393237278,1762367444911,-815.5,0.00017531,2]
[393237279,1762367444923,-164.24233997,0.00017532,2]
[393237280,1762367444932,-861.0,0.00017541,2]
[393237281,1762367444942,-1000.0,0.00017542,2]
[393237282,1762367444951,-150.0,0.00017543,2]
[393237283,1762367444962,-150.0,0.00017543,2]
[393237284,1762367444971,-150.0,0.00017543,2]
[393237285,1762367444980,-150.0,0.00017543,2]
[393237286,1762367444990,-150.0,0.00017543,2]
[393237287,1762367445000,-150.0,0.00017543,2]
[393237288,1762367445010,-150.0,0.00017543,2]
[393237289,1762367445019,-150.0,0.00017543,2]
[393237290,1762367445028,-168.061,0.00017543,2]
[393237291,1762367445037,-861.0,0.00017548,2]
[393237292,1762367445047,-150.0,0.0001756,2]
[393237293,1762367445056,-259.0,0.0001756,2]
[393237294,1762367445066,-150.0,0.0001756,2]
[393237295,1762367445075,-150.0,0.0001756,2]
[393237296,1762367445084,-150.0,0.0001756,2]
[393237297,1762367445093,-150.0,0.0001756,2]
[393237298,1762367445103,-150.0,0.0001756,2]
[393237299,1762367445112,-150.0,0.0001756,2]
[393237300,1762367445121,-150.0,0.0001756,2]
[393237301,1762367445131,-1096.8631119,0.00017578,2]
[393237302,1762367445140,-5000.0,0.000176,2]
[393237303,1762367445150,-1100.0,0.000176,6]
[393237304,1762367445159,-163.3,0.00017615,2]
[393237305,1762367445169,-602.12714801,0.00017615,2]
[393237306,1762367445178,-151.0,0.00017622,2]
[393237307,1762367445187,-5888.0,0.00017626,2]
[393237308,1762367445196,-861.0,0.00017626,2]
[393237309,1762367445206,-500.0,0.00017629,2]
[393237310,1762367445215,-500.0,0.00017629,2]
[393237311,1762367445225,-494.0006923,0.00017629,2]
[393237312,1762367445237,-585.15023547,0.00017629,2]
[393237313,1762367445247,-162.45450241,0.0001765,2]
[393237314,1762367445256,-500.0,0.00017657,2]
[393237315,1762367445266,-200.0,0.00017657,2]
[393237316,1762367445276,-166.67,0.00017659,2]
[393237317,1762367445285,-234.89,0.00017668,2]
[393237318,1762367445295,-174.55969353,0.00017671,2]
[393237319,1762367445304,-500.0,0.00017673,2]
[393237320,1762367445313,-503.1607013,0.00017673,2]
[393237321,1762367445323,-500.0,0.00017673,2]
[393237322,1762367445332,-500.0,0.00017673,2]
[393237323,1762367445341,-418.82320546,0.00017673,2]
[393237324,1762367445351,-500.0,0.00017673,2]
[393237325,1762367445360,-500.0,0.00017673,2]
[393237326,1762367445369,-500.0,0.00017673,2]
[393237327,1762367445379,-500.0,0.00017673,2]
[393237328,1762367445389,-500.0,0.00017673,2]
[393237329,1762367445398,-500.0,0.00017673,2]
[393237330,1762367445407,-163.3,0.0001769,2]
[393237331,1762367445416,-163.3,0.0001769,2]
[393237332,1762367445426,-163.3,0.0001769,2]
[393237333,1762367445435,-151.0,0.00017697,2]
[393237334,1762367445444,-490.47,0.00017699,2]
[393237335,1762367445454,-500.0,0.00017699,2]
[393237336,1762367445463,-500.0,0.00017699,2]
[393237337,1762367445473,-5890.33622538,0.00017699,2]
[393237338,1762367445483,-500.0,0.00017699,2]
[393237339,1762367445493,-500.0,0.00017699,2]
[393237340,1762367445502,-500.0,0.00017699,2]
[393237341,1762367445512,-402366.97779192,0.000177,2]
[393237342,1762367445521,-151.0,0.000177,2]
[393237343,1762367445531,-151.0,0.000177,2]
[393237344,1762367445540,-454336.88683414,0.000177,2]
[393237345,1762367445549,-151.0,0.000177,2]
[393237346,1762367445559,-553.124282,0.000177,2]
[393237347,1762367445568,-553.124282,0.000177,2]
[393237348,1762367445578,-553.124282,0.000177,2]
[393237349,1762367445588,-553.124282,0.000177,2]
[393237350,1762367445597,-553.124282,0.000177,2]
[393237351,1762367445607,-553.124282,0.000177,2]
[393237352,1762367445617,-553.124282,0.000177,2]
[393237353,1762367445626,-553.124282,0.000177,2]
[393237354,1762367445635,-1100.0,0.000177,6]
[393237355,1762367445645,-151.0,0.000177,2]
[393237357,1762367445655,-2500.0,0.00017706,3]
[393237358,1762367445664,-2500.0,0.00017715,3]
[393237360,1762367445673,-164.24233997,0.00017716,2]
[393237361,1762367445684,-2500.0,0.00017724,3]
[393237362,1762367445693,-1000.0,0.00017726,2]
[393237363,1762367445703,-2000.0,0.00017733,2]
[393237364,1762367445712,-2500.0,0.00017733,3]
[393237365,1762367445721,-2500.0,0.00017742,3]
[393237366,1762367445731,-2500.0,0.0001775,3]
[393237367,1762367445740,-2500.0,0.00017759,3]
[393237368,1762367445749,-2500.0,0.00017768,3]
[393237369,1762367445759,-500.0,0.00017773,2]
[393237370,1762367445768,-162.45450241,0.00017775,2]
[393237371,1762367445778,-2500.0,0.00017777,3]
[393237372,1762367445790,-500.0,0.00017781,2]
[393237373,1762367445799,-2500.0,0.00017786,3]
[393237374,1762367445808,-2500.0,0.00017794,3]
[393237375,1762367445818,-1000.0,0.00017796,2]
[393237376,1762367445828,-427.83711172,0.00017799,2]
[393237377,1762367445837,-182.14042067,0.00017799,5]
[393237378,1762367445847,-500.0,0.00017799,2]
[393237379,1762367445856,-500.0,0.00017799,2]
[393237380,1762367445866,-397578.25158759,0.000178,2]
[393237381,1762367445875,-250.0,0.000178,2]
[393237382,1762367445884,-259.9,0.000178,2]
[393237383,1762367445894,-151.0,0.000178,2]
[393237384,1762367445903,-151.0,0.000178,2]
[393237385,1762367445913,-151.0,0.000178,2]
[393237386,1762367445925,-151.0,0.000178,2]
[393237387,1762367445935,-268.787587,0.000178,2]
[393237388,1762367445945,-553.124282,0.000178,2]
[393237389,1762367445954,-302.0,0.000178,2]
[393237390,1762367445965,-553.124282,0.000178,2]
[393237391,1762367445974,-553.124282,0.000178,2]
[393237392,1762367445984,-553.124282,0.000178,2]
[393237393,1762367445994,-2126.0,0.000178,2]
[393237394,1762367446007,-1100.0,0.000178,6]
[393237395,1762367446017,-2500.0,0.00017803,3]
[393237396,1762367446027,-2500.0,0.00017812,3]
[393237397,1762367446037,-2500.0,0.00017821,3]
[393237398,1762367446047,-2500.0,0.0001783,3]
[393237399,1762367446056,-4718.0,0.0001783,2]
[393237400,1762367446067,-500.0,0.00017836,2]
[393237401,1762367446077,-2500.0,0.00017838,3]
[393237402,1762367446087,-2500.0,0.00017847,3]
[393237403,1762367446097,-2500.0,0.00017856,3]
[393237404,1762367446107,-2500.0,0.00017865,3]
[393237405,1762367446116,-2500.0,0.00017865,3]
[393237406,1762367446126,-2500.0,0.00017874,3]
[393237407,1762367446135,-2500.0,0.00017874,3]
[393237408,1762367446145,-2500.0,0.00017882,3]
[393237409,1762367446154,-2500.0,0.00017882,3]
[393237410,1762367446164,-1000.0,0.00017884,2]
[393237411,1762367446174,-2500.0,0.00017891,3]
[393237412,1762367446183,-2500.0,0.00017891,3]
[393237413,1762367446193,-500.0,0.00017899,2]
[393237414,1762367446203,-160.0,0.000179,2]
[393237415,1762367446213,-2500.0,0.000179,3]
[393237416,1762367446223,-2500.0,0.000179,3]
[393237417,1762367446232,-239.56426196,0.000179,2]
[393237418,1762367446242,-2500.0,0.000179,3]
[393237419,1762367446251,-2500.0,0.000179,3]
[393237420,1762367446261,-2500.0,0.000179,3]
[393237421,1762367446270,-164.24233997,0.000179,2]
[393237422,1762367446279,-162.45450241,0.000179,2]
[393237423,1762367446289,-1463.0,0.000179,6]
[393237424,1762367446298,-1107.50005,0.000179,2]
[393237425,1762367446308,-717.6197285,0.000179,2]
[393237426,1762367446317,-5888.0,0.00017912,2]
[393237427,1762367446327,-162.32794439,0.00017945,2]
[393237428,1762367446336,-587.0,0.00017965,2]
[393237429,1762367446346,-180.0,0.00017965,2]
[393237430,1762367446356,-180.0,0.00017965,2]